bitfinex-derivatives/quotes_BTCF0:USTF0_20241227
["timestamp","ask_amount","ask_price","bid_price","bid_amount"]
[1735286633964,9.465e-05,95517.0,95500.0,0.1]
[1735286634367,0.052416,95509.0,95500.0,0.1]
[1735286634570,9.465e-05,95517.0,95503.0,0.001]
[1735286634867,0.052416,95509.0,95503.0,0.001]
[1735286635164,9.465e-05,95517.0,95503.0,0.001]
[1735286635460,0.15795295,95530.0,95503.0,0.001]
[1735286635461,0.052419,95505.0,95503.0,0.001]
[1735286635665,9.465e-05,95504.0,95503.0,0.001]
[1735286636060,9.465e-05,95504.0,95500.0,0.101]
[1735286636263,9.465e-05,95504.0,95501.0,0.05242]
[1735286637869,9.465e-05,95504.0,95463.0,0.3656]
[1735286638056,0.052429,95486.0,95465.0,0.138]
[1735286638258,0.15795295,95500.0,95465.0,0.138]
[1735286638259,0.052437,95472.0,95465.0,0.138]
[1735286638469,0.05244,95467.0,95465.0,0.138]
[1735286639464,8.62e-05,95471.0,95465.0,0.138]
[1735286641075,0.052438,95469.0,95465.0,0.138]
[1735286641365,0.052438,95469.0,95441.0,0.1419]
[1735286641366,0.052451,95447.0,95431.0,0.3656]
[1735286641556,9.465e-05,95446.0,95431.0,0.5118]
[1735286641961,0.05239965,95457.0,95443.0,0.052452]
[1735286642261,0.1496,95503.0,95450.0,0.052448]
[1735286642262,0.0107421,95480.0,95450.0,0.052448]
[1735286642472,0.0107421,95480.0,95450.0,0.21040095]
[1735286642662,0.052443,95460.0,95450.0,0.21040095]
[1735286642868,0.052443,95460.0,95450.0,0.052448]
[1735286643066,0.0107421,95480.0,95450.0,0.052448]
[1735286643271,0.052445,95457.0,95450.0,0.052448]
[1735286643473,0.146,95496.0,95452.0,0.3656]
[1735286643677,0.052437,95471.0,95460.0,0.21039595]
[1735286643861,0.052432,95480.0,95466.0,0.052439]
[1735286644169,0.052435,95475.0,95466.0,0.052439]
[1735286644372,0.15653291,95496.0,95461.0,0.146]
[1735286644673,0.15795295,95490.0,95461.0,0.146]
[1735286644868,0.052442,95463.0,95461.0,0.146]
[1735286645167,0.052447,95453.0,95451.0,0.3656]
[1735286645569,0.052448,95451.0,95428.0,0.180434]
[1735286645769,0.052466,95418.0,95413.0,0.01163731]
[1735286645971,0.052462,95426.0,95413.0,0.01163731]
[1735286646164,0.15795295,95430.0,95409.0,0.1377]
[1735286646360,0.052464,95423.0,95409.0,0.1377]
[1735286646667,0.36310615,95456.0,95445.0,0.003]
[1735286646668,0.15795295,95450.0,95445.0,0.003]
[1735286646973,0.15795295,95450.0,95416.0,0.052467]
[1735286646974,0.052463,95424.0,95416.0,0.052467]
[1735286647267,0.052455,95438.0,95412.0,0.00157229]
[1735286647472,0.15795295,95440.0,95412.0,0.00157229]
[1735286647772,0.052463,95423.0,95412.0,0.00157229]
[1735286647976,0.052475,95401.0,95400.0,0.1]
[1735286648560,0.052489,95376.0,95354.0,0.232935]
[1735286648875,0.15795295,95420.0,95360.0,0.15795295]
[1735286649172,0.052478,95397.0,95383.0,0.052485]
[1735286649769,0.15795295,95420.0,95384.0,0.325334]
[1735286650072,0.15795295,95420.0,95396.0,0.052478]
[1735286650259,0.1476,95422.0,95389.0,0.052481]
[1735286650260,0.052471,95409.0,95389.0,0.052481]
[1735286650460,0.052471,95409.0,95385.0,0.180434]
[1735286650461,0.052471,95409.0,95390.0,0.052481]
[1735286650672,0.052472,95408.0,95391.0,0.052481]
[1735286650866,0.24431231,95420.0,95391.0,0.052481]
[1735286651258,0.24431231,95420.0,95396.0,0.005]
[1735286651469,0.052466,95418.0,95396.0,0.005]
[1735286651667,0.54431231,95420.0,95396.0,0.005]
[1735286651867,0.052478,95397.0,95396.0,0.005]
[1735286652470,0.052473,95405.0,95396.0,0.005]
[1735286652866,0.052466,95418.0,95396.0,0.005]
[1735286653172,0.052474,95405.0,95391.0,0.057481]
[1735286653380,0.052475,95403.0,95391.0,0.057481]
[1735286654064,0.052475,95403.0,95396.0,0.002]
[1735286654260,0.01034881,95425.0,95396.0,0.002]
[1735286654463,0.3522,95457.0,95396.0,0.302]
[1735286654464,0.24431231,95450.0,95396.0,0.302]
[1735286654664,0.24431231,95450.0,95396.0,0.002]
[1735286654861,0.052463,95424.0,95410.0,0.05247]
[1735286655063,0.24431231,95440.0,95409.0,0.052471]
[1735286655274,0.54431231,95440.0,95409.0,0.052471]
[1735286655471,0.052466,95418.0,95397.0,0.180434]
[1735286655668,0.052469,95413.0,95399.0,0.052476]
[1735286655875,0.001,95403.0,95384.0,0.325334]
[1735286656079,0.001,95403.0,95384.0,0.625334]
[1735286656379,0.001,95403.0,95397.0,0.052478]
[1735286656571,0.052471,95410.0,95400.0,0.052475]
[1735286656767,0.052471,95410.0,95401.0,0.052475]
[1735286657267,0.052471,95410.0,95399.0,0.002]
[1735286657470,0.001,95403.0,95390.0,0.42474631]
[1735286657667,0.01073266,95446.0,95390.0,0.42474631]
[1735286657668,0.052464,95422.0,95412.0,0.052469]
[1735286657873,0.052465,95420.0,95412.0,0.052469]
[1735286658777,0.24431231,95430.0,95401.0,0.052475]
[1735286658969,0.05247,95411.0,95401.0,0.052475]
[1735286659169,0.052473,95406.0,95401.0,0.052475]
[1735286659370,0.24431231,95420.0,95396.0,0.052478]
[1735286659673,0.052456,95437.0,95391.0,0.180434]
[1735286659869,0.052462,95425.0,95413.0,0.052469]
[1735286660071,0.052458,95433.0,95418.0,0.052466]
[1735286660274,0.052459,95431.0,95402.0,0.180434]
[1735286660475,0.052459,95431.0,95425.0,0.052462]
[1735286661284,0.052448,95451.0,95425.0,0.052462]
[1735286661578,0.052448,95451.0,95406.0,0.180434]
[1735286661579,0.15393141,95468.0,95410.0,0.24431231]
[1735286661782,0.052451,95446.0,95415.0,0.052467]
[1735286662074,0.052451,95446.0,95434.0,0.052457]
[1735286662467,0.052451,95446.0,95436.0,0.052456]
[1735286662668,0.15393141,95468.0,95420.0,0.24431231]
[1735286662880,0.052447,95453.0,95441.0,0.052453]
[1735286663077,0.052447,95453.0,95442.0,0.052452]
[1735286663380,0.001,95446.0,95444.0,0.052451]
[1735286663581,0.052442,95461.0,95450.0,0.052448]
[1735286663770,0.01067674,95487.0,95445.0,0.145]
[1735286663972,0.2856,95488.0,95445.0,0.145]
[1735286664184,0.052439,95467.0,95453.0,0.052446]
[1735286665080,0.052439,95467.0,95456.0,0.052445]
[1735286665279,0.05244,95466.0,95456.0,0.052445]
[1735286665475,0.2856,95488.0,95463.0,0.052441]
[1735286665671,0.052429,95486.0,95463.0,0.052441]
[1735286665876,0.15549142,95490.0,95450.0,0.24431231]
[1735286665877,0.15393141,95490.0,95450.0,0.24431231]
[1735286666090,0.052433,95479.0,95467.0,0.052439]
[1735286666275,0.052434,95478.0,95467.0,0.052439]
[1735286668882,0.052435,95475.0,95467.0,0.052439]
[1735286669084,0.052436,95474.0,95467.0,0.052439]
[1735286669487,0.001,95478.0,95453.0,0.180434]
[1735286669888,0.05244,95466.0,95453.0,0.180434]
[1735286670187,0.052442,95463.0,95453.0,0.180434]
[1735286670389,0.052444,95458.0,95452.0,0.052447]
[1735286670584,0.052444,95458.0,95453.0,0.002]
[1735286670783,0.052446,95454.0,95453.0,0.002]
[1735286671991,0.24431231,95470.0,95438.0,0.00157183]
[1735286672184,0.052454,95439.0,95438.0,0.00157183]
[1735286673889,0.1421,95466.0,95440.0,0.052453]
[1735286674083,0.052449,95449.0,95440.0,0.052453]
[1735286674280,0.05245,95447.0,95440.0,0.052453]
[1735286674488,0.052452,95445.0,95438.0,0.00157183]
[1735286674698,0.052444,95458.0,95438.0,0.00157183]
[1735286674884,0.29603141,95466.0,95438.0,0.00157183]
[1735286674885,0.15831364,95450.0,95438.0,0.00157183]
[1735286675193,0.052454,95440.0,95438.0,0.00157183]
[1735286676083,0.052454,95440.0,95432.0,0.052458]
[1735286676578,0.052454,95440.0,95426.0,0.1459]
[1735286676788,0.052454,95440.0,95433.0,0.052458]
[1735286677183,0.15831364,95450.0,95433.0,0.052458]
[1735286677391,0.052455,95439.0,95433.0,0.052458]
[1735286679292,0.052455,95439.0,95433.0,0.053458]
[1735286679897,0.052455,95439.0,95434.0,0.052457]
[1735286680889,0.052451,95446.0,95433.0,0.001]
[1735286681089,0.052452,95445.0,95439.0,0.052454]
[1735286681287,0.052452,95444.0,95439.0,0.052454]
[1735286682397,0.09286615,95461.0,95460.0,0.052443]
[1735286682584,0.1238985,95465.0,95464.0,0.052441]
[1735286683291,0.15393141,95470.0,95469.0,0.052438]
[1735286683593,0.052428,95488.0,95483.0,0.05243]
[1735286683794,0.052429,95486.0,95483.0,0.05243]
[1735286684383,0.12402363,95493.0,95461.0,0.180434]
[1735286684589,0.052434,95476.0,95467.0,0.052439]
[1735286685490,0.05243,95483.0,95461.0,0.180434]
[1735286685685,0.052431,95482.0,95473.0,0.052435]
[1735286685885,0.052432,95481.0,95473.0,0.052435]
[1735286686085,0.052432,95481.0,95475.0,0.052435]
[1735286686288,0.001,95476.0,95475.0,0.052435]
[1735286686492,0.001,95476.0,95461.0,0.180434]
[1735286686798,0.001,95476.0,95461.0,0.232876]
[1735286686989,0.052439,95468.0,95461.0,0.052442]
[1735286687299,0.001,95476.0,95454.0,0.052446]
[1735286687495,0.15831364,95470.0,95444.0,0.00157134]
[1735286687799,0.05245,95449.0,95444.0,0.00157134]
[1735286689190,0.05445,95449.0,95444.0,0.00157134]
[1735286689597,0.002,95449.0,95448.0,0.05245]
[1735286690793,0.001,95449.0,95448.0,0.05245]
[1735286691585,0.052442,95463.0,95444.0,0.00157134]
[1735286691785,0.052437,95471.0,95450.0,0.15831364]
[1735286691991,0.052437,95471.0,95464.0,0.05244]
[1735286692397,0.15393141,95478.0,95464.0,0.05244]
[1735286692801,0.15171157,95488.0,95464.0,0.05244]
[1735286692802,0.15393141,95486.0,95464.0,0.05244]
[1735286693105,0.052438,95470.0,95464.0,0.05244]
[1735286693290,0.052438,95470.0,95451.0,0.1377]
[1735286693291,0.15393141,95486.0,95460.0,0.15831364]
[1735286693593,0.15393141,95486.0,95451.0,0.318134]
[1735286693594,0.15393141,95486.0,95482.0,0.05243]
[1735286694503,0.15393141,95495.0,95482.0,0.05243]
[1735286694703,0.052427,95489.0,95482.0,0.05243]
[1735286695391,0.003,95486.0,95470.0,0.15831364]
[1735286695587,0.003,95486.0,95485.0,0.052429]
[1735286696703,0.1,95500.0,95473.0,0.3005]
[1735286696995,0.1,95500.0,95498.0,0.052422]
[1735286698193,0.1,95500.0,95498.0,0.053422]
[1735286699004,0.1412,95534.0,95513.0,0.052413]
[1735286699195,0.052407,95525.0,95501.0,0.180434]
[1735286699397,0.052407,95525.0,95520.0,0.05241]
[1735286700112,0.1412,95534.0,95501.0,0.180434]
[1735286700310,0.052411,95518.0,95510.0,0.052415]
[1735286700603,0.052412,95516.0,95510.0,0.052415]
[1735286702001,0.053412,95516.0,95510.0,0.052415]
[1735286702209,0.001,95516.0,95502.0,0.05242]
[1735286702395,0.052419,95505.0,95497.0,0.052423]
[1735286702595,0.15831364,95512.0,95497.0,0.052423]
[1735286702596,0.05242,95502.0,95497.0,0.052423]
[1735286702798,0.15831364,95512.0,95489.0,0.052427]
[1735286703297,0.052423,95496.0,95478.0,0.18758606]
[1735286703501,0.1459,95515.0,95480.0,0.15831364]
[1735286703699,0.052417,95507.0,95496.0,0.052423]
[1735286704302,0.052421,95500.0,95480.0,0.052432]
[1735286704498,0.052421,95500.0,95493.0,0.052425]
[1735286704808,0.052417,95507.0,95498.0,0.052422]
[1735286705105,0.052411,95520.0,95509.0,0.052416]
[1735286705498,0.15831364,95530.0,95509.0,0.052416]
[1735286705499,0.052411,95519.0,95509.0,0.052416]
[1735286705698,0.15831364,95530.0,95509.0,0.052416]
[1735286706003,0.052412,95517.0,95509.0,0.052416]
[1735286706593,0.16903128,95530.0,95509.0,0.052416]
[1735286706800,0.15393141,95544.0,95520.0,0.15831364]
[1735286707112,0.15393141,95544.0,95542.0,0.052397]
[1735286708211,0.052393,95552.0,95542.0,0.052397]
[1735286708501,0.052393,95552.0,95521.0,0.180434]
[1735286708703,0.1422,95559.0,95521.0,0.180434]
[1735286708704,0.1422,95559.0,95523.0,0.052408]
[1735286708904,0.001,95544.0,95543.0,0.052397]
[1735286710201,0.1443,95575.0,95543.0,0.232831]
[1735286710397,0.052381,95574.0,95561.0,0.052387]
[1735286710803,0.052381,95574.0,95562.0,0.052387]
[1735286710997,0.1443,95575.0,95562.0,0.052387]
[1735286711203,0.052376,95582.0,95562.0,0.052387]
[1735286711607,0.1443,95592.0,95562.0,0.052387]
[1735286711812,0.05238,95576.0,95562.0,0.052387]
[1735286712110,0.03388,95564.0,95562.0,0.052387]
[1735286713501,0.02888,95564.0,95554.0,0.052391]
[1735286713702,0.052389,95559.0,95554.0,0.052391]
[1735286713896,0.052389,95559.0,95544.0,0.1392]
[1735286713897,0.052391,95555.0,95546.0,0.052396]
[1735286714216,0.052392,95554.0,95546.0,0.052396]
[1735286714504,0.052395,95547.0,95538.0,0.0524]
[1735286714911,0.052395,95547.0,95542.0,0.052398]
[1735286719514,0.15831364,95556.0,95543.0,0.052397]
[1735286719515,0.052391,95555.0,95543.0,0.052397]
[1735286719704,0.052393,95552.0,95543.0,0.052397]
[1735286719905,0.052393,95551.0,95543.0,0.052397]
[1735286720401,0.052394,95550.0,95543.0,0.052397]
[1735286721207,0.052394,95550.0,95546.0,0.052396]
[1735286721520,0.052391,95555.0,95548.0,0.052394]
[1735286722814,0.052391,95555.0,95529.0,9.448e-05]
[1735286723018,0.15831364,95560.0,95531.0,0.180434]
[1735286723218,0.052387,95562.0,95531.0,0.180434]
[1735286723420,0.052387,95562.0,95551.0,0.052393]
[1735286723715,0.052388,95560.0,95551.0,0.052393]
[1735286723926,0.1473,95563.0,95542.0,0.052398]
[1735286723927,0.052392,95552.0,95542.0,0.052398]
[1735286724220,0.052397,95543.0,95531.0,0.180434]
[1735286724416,0.052393,95551.0,95540.0,0.052399]
[1735286724619,0.001,95555.0,95539.0,0.052399]
[1735286724822,0.052394,95550.0,95539.0,0.052399]
[1735286725020,0.052398,95543.0,95532.0,0.052403]
[1735286725517,0.15831364,95542.0,95529.0,9.448e-05]
[1735286725724,0.052404,95531.0,95529.0,9.448e-05]
[1735286726016,0.15831364,95542.0,95510.0,0.052415]
[1735286726017,0.1445,95541.0,95510.0,0.052415]
[1735286726222,0.15831364,95521.0,95501.0,0.31037998]
[1735286726416,0.052413,95514.0,95503.0,0.052419]
[1735286726611,0.05241,95520.0,95505.0,0.18758606]
[1735286726813,0.1393,95529.0,95505.0,0.18758606]
[1735286727127,0.16863087,95530.0,95505.0,0.18758606]
[1735286727420,0.052411,95519.0,95507.0,0.052417]
[1735286727620,0.1501,95528.0,95516.0,0.052412]
[1735286727621,0.052406,95527.0,95516.0,0.052412]
[1735286727818,0.052406,95527.0,95505.0,0.18758606]
[1735286727819,0.15831364,95540.0,95505.0,0.48915666]
[1735286728020,0.052403,95533.0,95506.0,0.1403]
[1735286728223,0.15831364,95540.0,95507.0,0.1371]
[1735286728432,0.0524,95539.0,95527.0,0.052406]
[1735286728717,0.0524,95539.0,95528.0,0.052405]
[1735286728924,0.15831364,95540.0,95528.0,0.052405]
[1735286728925,0.052401,95538.0,95528.0,0.052405]
[1735286729921,0.052401,95538.0,95527.0,0.052406]
[1735286730222,0.002,95538.0,95507.0,0.1371]
[1735286730412,0.002,95538.0,95531.0,0.052403]
[1735286731121,0.052402,95536.0,95531.0,0.052403]
[1735286731427,0.052411,95519.0,95515.0,0.052413]
[1735286731617,0.052412,95517.0,95509.0,0.18758606]
[1735286731924,0.052412,95517.0,95507.0,0.1371]
[1735286732516,0.15831364,95525.0,95506.0,0.18758606]
[1735286732717,0.052414,95513.0,95506.0,0.24000406]
[1735286732918,0.052414,95513.0,95509.0,0.052416]
[1735286733313,0.052408,95524.0,95509.0,0.052416]
[1735286733522,0.052413,95514.0,95509.0,0.052416]
[1735286736319,0.053413,95514.0,95509.0,0.052416]
[1735286737328,0.053413,95514.0,95510.0,0.052415]
[1735286737626,0.001,95514.0,95511.0,0.052415]
[1735286739631,0.052411,95519.0,95511.0,0.052415]
[1735286739828,0.001,95514.0,95511.0,0.052415]
[1735286740133,0.052415,95511.0,95505.0,0.0015706]
[1735286740317,0.052415,95511.0,95506.0,0.052417]
[1735286740522,0.15831364,95515.0,95514.0,0.052413]
[1735286740723,0.052407,95525.0,95496.0,0.052423]
[1735286741022,0.052408,95524.0,95514.0,0.052413]
[1735286741222,0.052407,95527.0,95517.0,0.052411]
[1735286741421,0.052407,95527.0,95518.0,0.052411]
[1735286742137,0.15831364,95530.0,95518.0,0.052411]
[1735286742428,0.15393141,95536.0,95518.0,0.052411]
[1735286742826,0.002,95524.0,95518.0,0.052411]
[1735286743029,0.052409,95522.0,95518.0,0.052411]
[1735286744524,0.12454889,95527.0,95518.0,0.052411]
[1735286744728,0.05241,95521.0,95518.0,0.052411]
[1735286745025,0.12454889,95526.0,95501.0,0.18758606]
[1735286745228,0.052411,95519.0,95511.0,0.052415]
[1735286745624,0.052411,95519.0,95512.0,0.052414]
[1735286745830,0.12454889,95526.0,95501.0,0.18758606]
[1735286745831,0.15831364,95522.0,95501.0,0.18758606]
[1735286746135,0.052417,95508.0,95501.0,0.18758606]
[1735286746328,0.052417,95508.0,95499.0,0.24000706]
[1735286746734,0.052417,95508.0,95500.0,0.052421]
[1735286746934,0.052417,95508.0,95502.0,0.052419]
[1735286747438,0.052417,95508.0,95499.0,0.001]
[1735286747933,0.052417,95508.0,95504.0,0.052418]
[1735286749124,0.052417,95507.0,95504.0,0.052418]
[1735286749332,0.052412,95517.0,95504.0,0.052418]
[1735286749539,0.052416,95510.0,95509.0,0.052416]
[1735286752442,0.12454889,95517.0,95502.0,0.052419]
[1735286752443,0.052419,95504.0,95502.0,0.052419]
[1735286752940,0.052421,95500.0,95498.0,0.18915682]
[1735286754334,0.052421,95500.0,95498.0,0.00157076]
[1735286756545,0.052424,95494.0,95493.0,0.18758606]
[1735286757536,0.20635241,95500.0,95484.0,0.18758606]
[1735286757745,0.052429,95485.0,95484.0,0.18758606]
[1735286758048,0.052435,95474.0,95473.0,0.31037998]
[1735286759151,0.05099402,95474.0,95460.0,0.052443]
[1735286759338,0.05099402,95474.0,95467.0,0.052439]
[1735286759840,0.052437,95472.0,95467.0,0.052439]
[1735286760041,0.052448,95452.0,95444.0,0.232886]
[1735286760238,0.052448,95451.0,95441.0,0.1515]
[1735286760542,0.05245,95447.0,95441.0,0.1515]
[1735286760935,0.052452,95443.0,95441.0,0.1515]
[1735286761539,0.00010226,95446.0,95436.0,0.31037998]
[1735286761747,0.052453,95441.0,95436.0,0.31037998]
[1735286762246,0.00010226,95446.0,95430.0,0.15832727]
[1735286762450,0.00010226,95446.0,95445.0,0.052451]
[1735286762640,0.00010226,95446.0,95423.0,0.1382]
[1735286763345,0.052453,95442.0,95440.0,0.00357124]
[1735286764046,0.00010226,95441.0,95440.0,0.00357124]
[1735286765047,0.00010226,95441.0,95440.0,0.00257124]
[1735286766944,0.00010226,95441.0,95421.0,0.2026]
[1735286767150,0.00010226,95441.0,95439.0,0.052454]
[1735286768049,0.00010226,95441.0,95421.0,0.2066]
[1735286768247,0.052455,95438.0,95429.0,0.05246]
[1735286768440,0.15832727,95440.0,95421.0,0.004]
[1735286768951,0.052459,95432.0,95426.0,0.052462]
[1735286771149,0.052454,95440.0,95419.0,0.00157175]
[1735286771445,0.052455,95438.0,95430.0,0.052459]
[1735286771845,0.00010226,95441.0,95426.0,0.003]
[1735286772042,0.00010226,95441.0,95433.0,0.052457]
[1735286772241,0.052458,95433.0,95426.0,0.052461]
[1735286772555,0.052458,95433.0,95427.0,0.052461]
[1735286772952,0.052459,95432.0,95427.0,0.052461]
[1735286773155,0.05246,95429.0,95427.0,0.052461]
[1735286773350,0.00010226,95428.0,95419.0,0.00557175]
[1735286773549,0.052462,95425.0,95420.0,0.052465]
[1735286774850,0.052462,95425.0,95419.0,0.00157175]
[1735286775049,0.00010226,95428.0,95419.0,0.00157175]
[1735286775449,0.00010226,95428.0,95426.0,0.052461]
[1735286775651,0.052453,95442.0,95433.0,0.052457]
[1735286775849,0.05245,95447.0,95434.0,0.052457]
[1735286776054,0.15832727,95450.0,95420.0,0.004]
[1735286776259,0.15832727,95430.0,95427.0,0.052461]
[1735286776456,0.15832727,95440.0,95419.0,0.00557175]
[1735286776649,0.05246,95429.0,95419.0,0.00557175]
[1735286776849,0.05246,95429.0,95424.0,0.052463]
[1735286777356,0.05246,95429.0,95426.0,0.052462]
[1735286777857,0.052456,95436.0,95419.0,0.00157175]
[1735286778057,0.052456,95436.0,95420.0,0.004]
[1735286778751,0.052456,95436.0,95430.0,0.052459]
[1735286779359,0.15832727,95440.0,95430.0,0.052459]
[1735286779561,0.052459,95432.0,95430.0,0.052459]
[1735286780353,0.15832727,95440.0,95424.0,0.052462]
[1735286780653,0.05246,95430.0,95424.0,0.052462]
[1735286780854,0.15832727,95440.0,95424.0,0.052462]
[1735286781052,0.052465,95421.0,95419.0,0.00157175]
[1735286781650,0.052465,95421.0,95419.0,0.05403675]
[1735286782559,0.052465,95421.0,95419.0,0.00157175]
[1735286782758,0.053465,95421.0,95419.0,0.00157175]
[1735286784263,0.0103317,95437.0,95419.0,0.00157175]
[1735286784459,0.12452171,95436.0,95426.0,0.052461]
[1735286785572,0.30533253,95439.0,95426.0,0.052461]
[1735286785867,0.052459,95431.0,95426.0,0.052461]
[1735286786251,0.052462,95427.0,95420.0,0.052465]
[1735286786861,0.052462,95427.0,95421.0,0.052464]
[1735286787066,0.10560912,95430.0,95419.0,0.00157175]
[1735286787464,0.12552171,95436.0,95420.0,0.10560912]
[1735286787657,0.12452171,95436.0,95419.0,0.00157175]
[1735286787857,0.001,95439.0,95419.0,0.00157175]
[1735286787858,0.10560912,95430.0,95419.0,0.00157175]
[1735286788672,0.12452171,95431.0,95420.0,0.001]
[1735286788860,0.12452171,95431.0,95420.0,0.10660912]
[1735286789057,0.12452171,95431.0,95420.0,0.001]
[1735286789466,0.15565214,95443.0,95420.0,0.001]
[1735286789467,0.12452171,95437.0,95420.0,0.001]
[1735286789766,0.10560912,95430.0,95420.0,0.001]
[1735286789966,0.12452171,95437.0,95420.0,0.001]
[1735286790264,0.10560912,95430.0,95420.0,0.001]
[1735286790566,0.10560912,95430.0,95419.0,0.00157175]
[1735286790567,0.10560912,95430.0,95419.0,0.00557175]
[1735286791366,0.10560912,95430.0,95419.0,0.00157175]
[1735286791663,0.10560912,95430.0,95420.0,0.003]
[1735286791961,0.34612627,95430.0,95420.0,0.003]
[1735286792162,0.34612627,95430.0,95419.0,0.00157175]
[1735286792366,0.34612627,95430.0,95419.0,0.00357175]
[1735286792766,0.24051715,95430.0,95419.0,0.00357175]
[1735286793263,0.12452171,95421.0,95419.0,0.00357175]
[1735286793865,0.12452171,95421.0,95420.0,0.001]
[1735286794572,0.12452171,95421.0,95419.0,0.00157175]
[1735286794767,0.12452171,95423.0,95419.0,0.00157175]
[1735286795564,0.001,95421.0,95419.0,0.00157175]
[1735286796963,0.001,95421.0,95420.0,6.78e-05]
[1735286797366,0.12452171,95424.0,95420.0,6.78e-05]
[1735286797567,0.12452171,95423.0,95420.0,6.78e-05]
[1735286800672,0.15565214,95425.0,95420.0,6.78e-05]
[1735286802076,0.15565214,95426.0,95420.0,6.78e-05]
[1735286803065,0.001,95425.0,95420.0,6.78e-05]
[1735286803770,0.15565214,95426.0,95420.0,6.78e-05]
[1735286804178,0.15665214,95426.0,95420.0,6.78e-05]
[1735286804777,0.12450448,95423.0,95420.0,6.78e-05]
[1735286805875,0.10560912,95450.0,95421.0,0.04550856]
[1735286806177,0.10560912,95450.0,95422.0,0.04550856]
[1735286806375,0.10560912,95450.0,95423.0,0.04550856]
[1735286806580,0.1556929,95429.0,95424.0,0.04550856]
[1735286806778,0.1556929,95429.0,95425.0,0.04550856]
[1735286806973,0.21550397,95447.0,95426.0,0.04550856]
[1735286807182,0.21550397,95447.0,95430.0,0.10560912]
[1735286807473,0.21550397,95447.0,95421.0,0.303]
[1735286807679,0.21550397,95447.0,95422.0,0.04549975]
[1735286807881,0.21550397,95447.0,95423.0,0.04549975]
[1735286808077,0.09345182,95445.0,95426.0,0.27220387]
[1735286808974,0.10560912,95440.0,95426.0,0.27220387]
[1735286809183,0.10560912,95440.0,95428.0,0.31394724]
[1735286810071,0.10560912,95440.0,95426.0,0.002]
[1735286810881,0.09339181,95436.0,95426.0,0.002]
[1735286811878,0.09339181,95436.0,95428.0,0.002]
[1735286812275,0.09339181,95437.0,95428.0,0.002]
[1735286812683,0.09339181,95437.0,95426.0,0.002]
[1735286813378,0.09339181,95437.0,95420.0,6.78e-05]
[1735286813579,0.10560912,95440.0,95428.0,0.002]
[1735286813580,0.09339181,95436.0,95428.0,0.002]
[1735286815076,0.09339181,95436.0,95420.0,6.78e-05]
[1735286815277,0.09339181,95435.0,95426.0,0.002]
[1735286815974,0.09339181,95435.0,95420.0,6.78e-05]
[1735286816184,0.09339181,95438.0,95428.0,0.002]
[1735286816987,0.09339181,95438.0,95426.0,0.002]
[1735286817573,0.09339181,95438.0,95428.0,0.10560912]
[1735286817984,0.09339181,95438.0,95426.0,0.002]
[1735286818186,0.09339181,95438.0,95428.0,0.10560912]
[1735286818380,0.09339181,95438.0,95428.0,0.10760912]
[1735286818586,0.06635812,95438.0,95428.0,0.40760912]
[1735286818985,0.10560912,95438.0,95434.0,0.25114063]
[1735286819180,0.154,95437.0,95434.0,0.25114063]
[1735286819375,0.4481,95437.0,95434.0,0.25114063]
[1735286820484,0.4481,95437.0,95420.0,6.78e-05]
[1735286820685,0.10560912,95430.0,95420.0,6.78e-05]
[1735286820884,0.21121824,95430.0,95420.0,6.78e-05]
[1735286821484,0.10560912,95430.0,95420.0,6.78e-05]
[1735286822297,0.00160001,95437.0,95420.0,6.78e-05]
[1735286822584,0.10560912,95450.0,95420.0,0.40567692]
[1735286823090,0.10560912,95450.0,95420.0,0.40867692]
[1735286823393,0.05100968,95449.0,95420.0,0.40867692]
[1735286823583,0.05100968,95449.0,95430.0,0.10560912]
[1735286823891,0.05100968,95449.0,95431.0,0.2887]
[1735286824279,0.05100968,95449.0,95431.0,0.5887]
[1735286824490,0.05100968,95449.0,95439.0,0.15829177]
[1735286824686,0.01613768,95469.0,95439.0,0.15829177]
[1735286824984,0.01678326,95485.0,95459.0,0.15829177]
[1735286825189,0.01678326,95485.0,95460.0,0.1525]
[1735286825784,0.15505098,95489.0,95470.0,0.15829177]
[1735286825980,0.15505098,95489.0,95470.0,0.36089177]
[1735286826182,0.1867113,95496.0,95471.0,0.11038515]
[1735286826391,0.1867113,95496.0,95480.0,0.15829177]
[1735286826692,0.1867113,95496.0,95472.0,0.2026]
[1735286827194,0.1867113,95496.0,95472.0,0.5026]
[1735286827396,0.1867113,95496.0,95472.0,0.2026]
[1735286827589,0.1867113,95496.0,95480.0,0.15829177]
[1735286827890,0.15829177,95520.0,95481.0,0.2026]
[1735286828095,0.1541,95522.0,95490.0,0.15829177]
[1735286828292,0.1541,95522.0,95481.0,0.5026]
[1735286828489,0.1541,95522.0,95490.0,0.15829177]
[1735286828687,0.17092223,95522.0,95490.0,0.15829177]
[1735286828896,0.001,95496.0,95482.0,0.2026]
[1735286829201,0.001,95496.0,95482.0,0.5026]
[1735286829696,0.15829177,95540.0,95490.0,0.004]
[1735286829895,0.15829177,95540.0,95500.0,0.15829177]
[1735286830099,0.1443,95548.0,95510.0,0.15829177]
[1735286830397,0.1443,95548.0,95520.0,0.15829177]
[1735286830796,0.1443,95548.0,95520.0,0.45829177]
[1735286831685,0.1443,95548.0,95520.0,0.15829177]
[1735286832087,0.001,95537.0,95520.0,0.15829177]
[1735286832681,0.1443,95548.0,95520.0,0.15829177]
[1735286832887,0.15829177,95540.0,95520.0,0.006]
[1735286833090,0.15829177,95530.0,95520.0,0.006]
[1735286833595,0.15829177,95540.0,95520.0,0.002]
[1735286834894,0.15829177,95530.0,95500.0,0.25271118]
[1735286835079,0.45829177,95540.0,95500.0,0.15986232]
[1735286835285,0.16091378,95548.0,95510.0,0.15829177]
[1735286835496,0.1443,95548.0,95510.0,0.15829177]
[1735286835696,0.15829177,95540.0,95501.0,0.26267109]
[1735286835997,0.15829177,95540.0,95520.0,0.002]
[1735286836193,0.15829177,95530.0,95520.0,0.002]